bitfinex-derivatives/quotes_BNBF0:USTF0_20250211
["timestamp","ask_amount","ask_price","bid_price","bid_amount"]
[1739310611617,1.33918263,638.58,637.43,0.31375994]
[1739310611817,1.33918263,638.57,637.43,0.31375994]
[1739310612010,1.33927633,638.56,637.43,0.31375994]
[1739310612215,0.662,638.59,637.43,0.31375994]
[1739310612416,1.33928089,638.58,637.43,0.31375994]
[1739310612611,1.33928089,638.57,637.43,0.31375994]
[1739310612811,1.33928089,638.56,637.43,0.31375994]
[1739310613010,1.33928089,638.55,637.43,0.31375994]
[1739310613215,1.33928089,638.54,637.43,0.31375994]
[1739310613411,1.33928089,638.53,637.43,0.31375994]
[1739310613612,1.33928089,638.52,637.43,0.31375994]
[1739310613811,1.33928089,638.51,637.43,0.31375994]
[1739310614016,1.33928089,638.5,637.43,0.31375994]
[1739310614216,1.33928089,638.49,637.43,0.31375994]
[1739310614416,0.662,638.59,637.43,0.31375994]
[1739310614417,1.33928089,638.48,637.43,0.31375994]
[1739310614614,1.33928089,638.47,637.43,0.31375994]
[1739310614812,0.662,638.59,637.43,0.31375994]
[1739310615017,1.33965825,638.58,637.43,0.31375994]
[1739310615216,1.33965825,638.57,637.43,0.31375994]
[1739310615416,1.33965825,638.56,637.43,0.31375994]
[1739310615617,1.33965825,638.55,637.43,0.31375994]
[1739310615819,1.33965825,638.54,637.43,0.31375994]
[1739310616019,1.33965825,638.53,637.43,0.31375994]
[1739310616219,1.33965825,638.52,637.43,0.31375994]
[1739310616415,0.662,638.59,637.43,0.31375994]
[1739310616620,1.33986926,638.58,637.43,0.31375994]
[1739310616819,0.662,638.59,637.43,0.31375994]
[1739310616820,1.33986926,638.57,637.43,0.31375994]
[1739310617016,1.33986926,638.56,637.43,0.31375994]
[1739310617217,1.33986926,638.55,637.43,0.31375994]
[1739310617412,1.33986926,638.54,637.43,0.31375994]
[1739310617617,1.33986926,638.53,637.43,0.31375994]
[1739310617814,1.33986926,638.52,637.43,0.31375994]
[1739310618023,0.662,638.59,637.43,0.31375994]
[1739310618422,1.34018916,638.58,637.43,0.31375994]
[1739310618722,1.34018916,638.57,637.43,1.67011845]
[1739310618926,1.34018916,638.56,637.43,1.67011845]
[1739310619223,1.3403019,638.55,637.43,1.67011845]
[1739310619422,1.488,638.59,637.43,1.67011845]
[1739310619625,1.34044873,638.58,637.43,1.67011845]
[1739310619825,1.34044873,638.57,637.43,1.67011845]
[1739310620122,1.488,638.59,637.43,1.67011845]
[1739310620123,1.34044873,638.56,637.43,1.67011845]
[1739310620320,1.34044873,638.55,637.43,1.67011845]
[1739310620519,1.34067843,638.54,637.43,1.67011845]
[1739310620725,1.34067843,638.53,637.43,1.67011845]
[1739310621024,1.34067843,638.52,637.52,1.35635851]
[1739310621219,0.947,638.53,637.53,0.31371072]
[1739310621422,1.34071954,638.52,637.53,0.31371072]
[1739310621625,0.947,638.53,637.53,0.31371072]
[1739310621824,1.34088025,638.52,637.53,0.31371072]
[1739310622024,0.947,638.53,637.53,0.31371072]
[1739310622225,1.3408964,638.52,637.53,0.31371072]
[1739310622420,1.34114534,638.51,637.53,0.31371072]
[1739310622622,0.947,638.53,637.54,1.35635851]
[1739310622821,1.34114043,638.52,637.55,0.31370088]
[1739310623028,0.947,638.53,637.55,0.31370088]
[1739310623225,1.3411366,638.52,637.55,0.31370088]
[1739310623425,0.947,638.53,637.55,0.31370088]
[1739310623720,1.34139847,638.52,637.55,0.31370088]
[1739310623919,1.34139847,638.51,637.55,0.31370088]
[1739310624123,0.947,638.53,637.55,0.31370088]
[1739310624427,1.34144938,638.52,637.55,0.31370088]
[1739310624625,1.34144938,638.51,637.55,0.31370088]
[1739310624927,0.947,638.53,637.55,0.31370088]
[1739310625226,1.34163363,638.52,637.55,0.31370088]
[1739310625422,1.34163363,638.51,637.55,0.31370088]
[1739310625627,1.34163363,638.5,637.55,0.31370088]
[1739310625821,1.34163363,638.49,637.55,0.31370088]
[1739310626022,1.34163363,638.48,637.55,0.31370088]
[1739310626228,1.34163363,638.47,637.55,0.31370088]
[1739310626429,1.34163363,638.46,637.55,0.31370088]
[1739310626629,1.34163363,638.45,637.55,0.31370088]
[1739310626831,1.34163363,638.44,637.55,0.31370088]
[1739310627025,1.34163363,638.43,637.55,0.31370088]
[1739310627230,1.34163363,638.42,637.55,0.31370088]
[1739310627429,1.34163363,638.41,637.55,0.31370088]
[1739310627736,1.34163363,638.4,637.55,0.31370088]
[1739310627937,1.34163363,638.39,637.55,0.31370088]
[1739310628126,1.34163363,638.38,637.55,0.31370088]
[1739310628332,1.34163363,638.37,637.55,0.31370088]
[1739310628527,1.34216201,638.36,637.55,0.31370088]
[1739310628833,1.34216201,638.35,637.55,0.31370088]
[1739310629027,1.34216201,638.34,637.55,0.31370088]
[1739310629230,1.34216201,638.33,637.55,0.31370088]
[1739310629428,1.34216201,638.32,637.55,0.31370088]
[1739310629628,1.34216201,638.31,637.55,0.31370088]
[1739310629833,1.34216201,638.3,637.55,0.31370088]
[1739310630027,1.34159577,638.29,637.55,0.31370088]
[1739310630231,1.34159577,638.28,637.55,0.31370088]
[1739310630432,1.34159577,638.27,637.55,0.31370088]
[1739310630628,1.34145244,638.26,637.55,0.31370088]
[1739310630934,1.34145244,638.25,637.55,0.31370088]
[1739310631135,1.34145244,638.24,637.55,0.31370088]
[1739310631337,1.34145244,638.23,637.55,0.31370088]
[1739310631531,1.34145244,638.22,637.55,0.31370088]
[1739310631728,1.34145244,638.21,637.55,0.31370088]
[1739310631932,1.34145244,638.2,637.55,0.31370088]
[1739310632134,1.34145244,638.19,637.55,0.31370088]
[1739310632331,1.34145244,638.18,637.55,0.31370088]
[1739310632631,0.947,638.53,637.55,0.31370088]
[1739310632834,1.34124587,638.52,637.55,0.31370088]
[1739310633034,1.34124587,638.51,637.55,0.31370088]
[1739310633235,1.34125355,638.5,637.55,0.31370088]
[1739310633433,1.34125355,638.49,637.55,0.31370088]
[1739310633630,1.34125355,638.48,637.55,0.31370088]
[1739310633832,1.34125355,638.47,637.55,0.31370088]
[1739310634034,1.34125355,638.46,637.55,0.31370088]
[1739310634237,0.947,638.53,637.55,0.31370088]
[1739310634238,1.34125355,638.45,637.55,0.31370088]
[1739310634439,1.34125355,638.44,637.55,0.31370088]
[1739310634636,1.34125355,638.43,637.55,0.31370088]
[1739310634836,1.34125355,638.42,637.55,0.31370088]
[1739310635035,1.34125355,638.41,637.55,0.31370088]
[1739310635239,1.34125355,638.4,637.55,0.31370088]
[1739310635441,1.34125355,638.39,637.55,0.31370088]
[1739310635641,1.34125355,638.38,637.55,0.31370088]
[1739310635842,1.34125355,638.37,637.55,0.31370088]
[1739310636046,1.34125355,638.36,637.55,0.31370088]
[1739310636244,1.34125355,638.35,637.55,0.31370088]
[1739310636463,1.34125355,638.34,637.55,0.31370088]
[1739310636643,1.34125355,638.33,637.55,0.31370088]
[1739310636846,1.34143329,638.32,637.55,0.31370088]
[1739310637043,1.34143329,638.31,637.55,0.31370088]
[1739310637245,1.34143329,638.3,637.55,0.31370088]
[1739310637447,1.34143329,638.29,637.55,0.31370088]
[1739310637640,1.34143329,638.28,637.55,0.31370088]
[1739310637847,1.34143329,638.27,637.55,0.31370088]
[1739310638145,0.76,638.29,637.55,0.31370088]
[1739310638146,1.34143329,638.26,637.55,0.31370088]
[1739310638347,1.34143329,638.25,637.55,0.31370088]
[1739310638543,1.34180342,638.24,637.55,0.31370088]
[1739310638741,0.76,638.29,637.55,0.31370088]
[1739310638943,1.34172953,638.28,637.55,0.31370088]
[1739310639148,0.76,638.29,637.55,0.31370088]
[1739310639346,1.34180186,638.28,637.55,0.31370088]
[1739310639641,0.76,638.29,637.55,0.31370088]
[1739310644649,1.34351154,638.28,637.55,0.31370088]
[1739310644850,1.34351154,638.27,637.55,0.31370088]
[1739310645044,1.34351154,638.26,637.55,0.31370088]
[1739310645246,0.76,638.29,637.55,0.31370088]
[1739310645450,1.34382179,638.28,637.55,0.31370088]
[1739310645645,1.34382179,638.27,637.55,0.31370088]
[1739310645843,1.34382179,638.26,637.55,0.31370088]
[1739310646043,0.76,638.29,637.55,0.31370088]
[1739310646247,1.34382956,638.28,637.55,0.31370088]
[1739310646447,1.34382956,638.27,637.55,0.31370088]
[1739310646648,0.76,638.29,637.55,0.31370088]
[1739310646849,1.34399483,638.28,637.55,0.31370088]
[1739310647050,1.34399215,638.27,637.55,0.31370088]
[1739310647249,0.76,638.29,637.55,0.31370088]
[1739310647445,1.34411278,638.28,637.55,0.31370088]
[1739310647651,1.34411278,638.27,637.55,0.31370088]
[1739310647851,1.34411278,638.26,637.55,0.31370088]
[1739310648045,0.76,638.29,637.55,0.31370088]
[1739310648046,1.34411278,638.25,637.55,0.31370088]
[1739310648247,1.34411278,638.24,637.55,0.31370088]
[1739310648451,1.3442165,638.23,637.55,0.31370088]
[1739310648754,0.76,638.29,637.55,0.31370088]
[1739310648953,1.34420599,638.28,637.55,0.31370088]
[1739310649153,1.34420599,638.27,637.55,0.31370088]
[1739310649350,1.34420599,638.26,637.55,0.31370088]
[1739310649552,1.34420599,638.25,637.55,0.31370088]
[1739310649851,1.34420599,638.24,637.55,0.31370088]
[1739310650052,0.76,638.29,637.55,0.31370088]
[1739310650252,1.34432159,638.28,637.55,0.31370088]
[1739310650454,1.34432159,638.27,637.55,0.31370088]
[1739310650654,0.76,638.29,637.55,0.31370088]
[1739310658759,1.133,638.44,637.55,0.31370088]
[1739310661768,1.796,638.44,637.55,0.31370088]
[1739310665768,1.34393313,638.43,637.55,0.31370088]
[1739310665968,1.34393313,638.42,637.55,0.31370088]
[1739310666167,1.34393313,638.41,637.55,0.31370088]
[1739310666371,1.34393313,638.4,637.55,0.31370088]
[1739310666570,1.34393313,638.39,637.55,0.31370088]
[1739310666773,1.34393313,638.38,637.55,0.31370088]
[1739310666974,1.34393313,638.37,637.55,0.31370088]
[1739310667273,1.34393313,638.36,637.55,0.31370088]
[1739310667473,1.34393313,638.35,637.55,0.31370088]
[1739310667674,1.34393313,638.34,637.55,0.31370088]
[1739310667875,1.34393313,638.33,637.55,0.31370088]
[1739310668171,1.34393313,638.32,637.55,0.31370088]
[1739310668377,1.34393313,638.31,637.55,0.31370088]
[1739310668574,1.34393313,638.3,637.55,0.31370088]
[1739310668774,0.889,638.36,637.55,0.31370088]
[1739310668969,1.3441174,638.35,637.55,0.31370088]
[1739310669180,1.3441174,638.34,637.55,0.31370088]
[1739310669372,1.3441174,638.33,637.55,0.31370088]
[1739310669676,1.34414302,638.32,637.55,0.31370088]
[1739310669878,1.34414302,638.31,637.55,0.31370088]
[1739310670075,1.34414302,638.3,637.55,0.31370088]
[1739310670375,0.889,638.36,637.55,0.31370088]
[1739310670575,1.34417974,638.35,637.55,0.31370088]
[1739310670883,1.34417974,638.34,637.55,0.31370088]
[1739310671074,1.34422424,638.33,637.55,0.31370088]
[1739310671274,1.34422424,638.32,637.55,0.31370088]
[1739310671575,1.34422424,638.31,637.55,0.31370088]
[1739310671775,1.34422424,638.3,637.55,0.31370088]
[1739310671971,1.34422424,638.29,637.55,0.31370088]
[1739310672171,1.34422424,638.28,637.55,0.31370088]
[1739310672372,1.34422424,638.27,637.55,0.31370088]
[1739310672577,1.34422424,638.26,637.55,0.31370088]
[1739310672773,1.34422424,638.25,637.55,0.31370088]
[1739310672973,0.889,638.36,637.55,0.31370088]
[1739310672974,1.34449623,638.24,637.55,0.31370088]
[1739310673175,1.34449623,638.23,637.55,0.31370088]
[1739310673371,1.34446566,638.22,637.55,0.31370088]
[1739310673576,1.34446566,638.21,637.55,0.31370088]
[1739310673776,1.34446566,638.2,637.55,0.31370088]
[1739310673973,1.34446566,638.19,637.55,0.31370088]
[1739310674177,1.34446566,638.18,637.55,0.31370088]
[1739310674375,1.34446566,638.17,637.55,0.31370088]
[1739310674575,1.34446566,638.16,637.55,0.31370088]
[1739310674779,1.34446566,638.15,637.55,0.31370088]
[1739310674980,1.066,638.24,637.55,0.31370088]
[1739310675182,1.34425732,638.23,637.55,0.31370088]
[1739310675381,1.34425732,638.22,637.55,0.31370088]
[1739310675577,1.34425732,638.21,637.55,0.31370088]
[1739310675781,1.34425732,638.2,637.55,0.31370088]
[1739310675983,1.34425732,638.19,637.55,0.31370088]
[1739310676181,1.34425732,638.18,637.55,0.31370088]
[1739310676382,1.34425732,638.17,637.55,0.31370088]
[1739310676578,1.34425732,638.16,637.55,0.31370088]
[1739310676782,1.066,638.24,637.55,0.31370088]
[1739310676783,1.34425732,638.15,637.55,0.31370088]
[1739310676982,1.066,638.24,637.55,0.31370088]
[1739310677284,1.34400198,638.23,637.55,0.31370088]
[1739310677482,1.34400198,638.22,637.55,0.31370088]
[1739310677682,1.066,638.24,637.55,0.31370088]
[1739310677683,1.34400198,638.21,637.55,0.31370088]
[1739310677982,1.34400198,638.2,637.55,0.31370088]
[1739310678186,1.34400198,638.19,637.55,0.31370088]
[1739310678385,1.34400198,638.18,637.55,0.31370088]
[1739310678585,1.066,638.24,637.55,0.31370088]
[1739310678782,1.34377762,638.23,637.55,0.31370088]
[1739310678982,1.34377762,638.22,637.55,0.31370088]
[1739310679183,1.34377762,638.21,637.55,0.31370088]
[1739310679483,1.34377762,638.2,637.55,0.31370088]
[1739310679679,1.34377762,638.19,637.55,0.31370088]
[1739310679883,1.34377762,638.18,637.55,0.31370088]
[1739310680085,1.34377762,638.17,637.55,0.31370088]
[1739310680287,1.34377762,638.16,637.55,0.31370088]
[1739310680487,1.34377762,638.15,637.55,0.31370088]
[1739310680686,1.066,638.24,637.55,0.31370088]
[1739310680883,1.34385756,638.23,637.55,0.31370088]
[1739310681088,1.34385756,638.22,637.55,0.31370088]
[1739310681383,1.34385756,638.21,637.55,0.31370088]
[1739310681586,1.34389712,638.2,637.55,0.31370088]
[1739310681785,1.34389712,638.19,637.55,0.31370088]
[1739310681987,1.34389712,638.18,637.55,0.31370088]
[1739310682182,1.34389712,638.17,637.55,0.31370088]
[1739310682383,1.34389712,638.16,637.55,0.31370088]
[1739310682583,1.34389712,638.15,637.55,0.31370088]
[1739310682783,1.34389712,638.14,637.55,0.31370088]
[1739310682989,1.34399274,638.13,637.55,0.31370088]
[1739310683189,1.34401568,638.12,637.55,0.31370088]
[1739310683393,1.34401568,638.11,637.55,0.31370088]
[1739310683688,1.34401568,638.1,637.55,0.31370088]
[1739310683883,1.34401568,638.09,637.55,0.31370088]
[1739310684087,1.34401568,638.08,637.55,0.31370088]
[1739310684390,1.34401568,638.07,637.55,0.31370088]
[1739310684590,1.34401568,638.06,637.55,0.31370088]
[1739310684788,1.066,638.24,637.55,0.31370088]
[1739310684989,1.34394466,638.23,637.55,0.31370088]
[1739310685190,1.34394466,638.22,637.55,0.31370088]
[1739310685392,1.34394466,638.21,637.55,0.31370088]
[1739310685692,1.34394466,638.2,637.55,0.31370088]
[1739310685889,1.34394466,638.19,637.55,0.31370088]
[1739310686093,1.34394466,638.18,637.55,0.31370088]
[1739310686287,1.34394466,638.17,637.55,0.31370088]
[1739310686486,1.34394466,638.16,637.55,0.31370088]
[1739310686690,1.34394466,638.15,637.55,0.31370088]
[1739310686990,1.113,638.21,637.55,0.31370088]
[1739310686991,1.34394466,638.14,637.55,0.31370088]
[1739310687186,1.34394466,638.13,637.55,0.31370088]
[1739310687385,1.34394466,638.12,637.55,0.31370088]
[1739310687591,1.34394466,638.11,637.55,0.31370088]
[1739310687885,1.34394466,638.1,637.55,0.31370088]
[1739310688092,1.34394466,638.09,637.55,0.31370088]
[1739310688289,1.34394466,638.08,637.55,0.31370088]
[1739310688498,1.34394466,638.07,637.55,0.31370088]
[1739310688699,1.34394466,638.06,637.55,0.31370088]
[1739310688890,1.34394466,638.05,637.55,0.31370088]
[1739310689091,1.34394466,638.04,637.55,0.31370088]
[1739310689293,1.34394466,638.03,637.55,0.31370088]
[1739310689490,1.34394466,638.02,637.55,0.31370088]
[1739310689694,1.34394466,638.01,637.55,0.31370088]
[1739310689994,1.34394466,638.0,637.55,0.31370088]
[1739310690196,1.34352117,637.99,637.55,0.31370088]
[1739310690390,0.663,638.04,637.55,0.31370088]
[1739310690590,1.34338719,638.03,637.55,0.31370088]
[1739310690895,1.34338719,638.02,637.55,0.31370088]
[1739310691094,1.34338719,638.01,637.55,0.31370088]
[1739310691290,1.34338719,638.0,637.55,0.31370088]
[1739310691490,1.34338719,637.99,637.55,0.31370088]
[1739310691694,1.34338719,637.98,637.55,0.31370088]
[1739310691993,0.663,638.04,637.55,0.31370088]
[1739310692194,1.34326479,638.03,637.55,0.31370088]
[1739310692490,1.34326479,638.02,637.55,0.31370088]
[1739310692691,1.34326479,638.01,637.55,0.31370088]
[1739310692892,1.34326479,638.0,637.55,0.31370088]
[1739310693098,0.663,638.04,637.55,0.31370088]
[1739310698094,1.772,638.04,637.55,0.31370088]
[1739310700304,1.109,638.04,637.55,0.31370088]
[1739310701599,0.663,638.03,637.55,0.31370088]
[1739310720308,1.34473448,638.02,637.55,0.31370088]
[1739310720506,0.663,638.03,637.55,0.31370088]
[1739310721511,1.3447638,638.02,637.55,0.31370088]
[1739310721812,1.34528739,638.01,637.55,0.31370088]
[1739310722017,0.663,638.03,637.55,0.31370088]
[1739310722213,1.34533646,638.02,637.55,0.31370088]
[1739310722508,1.34533646,638.01,637.55,0.31370088]
[1739310722716,1.34533646,638.0,637.55,0.31370088]
[1739310722915,1.3460181,637.99,637.55,0.31370088]
[1739310723116,0.663,638.03,637.55,0.31370088]
[1739310723317,1.34602087,638.02,637.55,0.31370088]
[1739310723513,1.34602087,638.01,637.55,0.31370088]
[1739310723718,1.34688403,638.0,637.55,0.31370088]
[1739310723917,1.34688403,637.99,637.55,0.31370088]
[1739310724111,1.34688403,637.98,637.55,0.31370088]
[1739310724314,1.34688403,637.97,637.55,0.31370088]
[1739310724517,1.34688403,637.96,637.55,0.31370088]
[1739310724718,1.34688403,637.95,637.55,0.31370088]
[1739310724913,1.34688403,637.94,637.55,0.31370088]
[1739310725119,1.34688403,637.93,637.55,0.31370088]
[1739310725418,1.34688403,637.92,637.55,0.31370088]
[1739310725614,0.663,637.95,637.55,0.31370088]
[1739310725821,1.34869141,637.94,637.55,0.31370088]
[1739310726116,1.34869141,637.93,637.55,0.31370088]
[1739310726315,0.663,637.95,637.55,0.31370088]
[1739310726514,1.34916162,637.94,637.55,0.31370088]
[1739310726819,0.663,637.95,637.55,0.31370088]
[1739310727015,1.34912964,637.94,637.55,0.31370088]
[1739310727218,0.663,637.95,637.55,0.31370088]
[1739310727517,1.34914238,637.94,637.55,0.31370088]
[1739310727619,1.34914238,637.93,637.55,0.31370088]
[1739310727820,0.663,637.95,637.55,0.31370088]
[1739310728020,1.34944034,637.94,637.55,0.31370088]
[1739310728215,1.3494428,637.93,637.55,0.31370088]
[1739310728423,0.663,637.95,637.55,0.31370088]
[1739310728622,1.34966778,637.94,637.55,0.31370088]
[1739310728921,1.34966778,637.93,637.55,0.31370088]
[1739310729119,0.663,637.95,637.55,0.31370088]
[1739310729315,1.34965247,637.94,637.55,0.31370088]
[1739310729515,1.35015616,637.93,637.55,0.31370088]
[1739310729720,0.663,637.95,637.55,0.31370088]
[1739310729914,1.35015616,637.94,637.55,0.31370088]
[1739310730118,1.35015616,637.93,637.55,0.31370088]
[1739310730318,0.663,637.95,637.55,0.31370088]
[1739310732924,1.35084503,637.94,637.55,0.31370088]
[1739310733118,0.663,637.95,637.55,0.31370088]
[1739310733318,1.3508653,637.94,637.55,0.31370088]
[1739310733519,0.663,637.95,637.55,0.31370088]
[1739310733723,1.35086493,637.94,637.55,0.31370088]
[1739310734018,1.694,637.95,637.55,0.31370088]
[1739310736923,1.35080126,637.94,637.55,0.31370088]
[1739310737225,1.694,637.95,637.55,0.31370088]
[1739310737520,1.35080097,637.94,637.55,0.31370088]
[1739310737722,1.694,637.95,637.55,0.31370088]
[1739310737923,1.3507734,637.94,637.55,0.31370088]
[1739310738121,1.35080701,637.93,637.28,1.35635851]
[1739310738321,1.35080701,637.92,637.28,1.35635851]
[1739310738519,1.35087009,637.91,637.28,1.35635851]
[1739310738724,1.35087009,637.9,637.28,1.35635851]
[1739310738926,1.35087009,637.89,637.28,1.35635851]
[1739310739126,1.35087009,637.88,637.28,1.35635851]
[1739310739325,1.35087009,637.87,637.28,1.35635851]
[1739310739523,1.35087009,637.86,637.28,1.35635851]
[1739310739828,1.35087009,637.85,637.28,1.35635851]
[1739310740020,1.35087009,637.84,637.28,1.35635851]
[1739310740220,1.35079255,637.83,637.28,1.35635851]
[1739310740425,0.663,637.9,637.28,1.35635851]
[1739310740625,1.3506347,637.89,636.9,1.35635851]
[1739310740824,1.3506347,637.88,636.92,0.31401117]
[1739310741021,1.3506347,637.87,636.92,0.31401117]
[1739310741327,1.3506347,637.86,636.92,0.31401117]
[1739310741626,1.3506347,637.85,636.92,0.31401117]
[1739310741828,0.663,637.9,636.92,0.31401117]
[1739310742027,1.350603,637.89,636.92,0.31401117]
[1739310742228,1.350603,637.88,636.92,0.31401117]
[1739310742422,1.350603,637.87,636.99,1.35635851]
[1739310742623,1.350603,637.86,637.0,0.31397174]
[1739310742824,0.663,637.9,637.0,0.31397174]
[1739310743027,1.35050442,637.89,637.0,0.31397174]
[1739310743330,0.663,637.9,637.0,0.31397174]
[1739310745232,0.663,637.9,637.02,1.35635851]
[1739310745432,0.663,637.9,637.04,0.31395202]
[1739310746731,0.663,637.9,637.19,1.35635851]
[1739310746931,0.663,637.9,637.2,0.31387319]
[1739310748630,0.663,637.9,637.26,1.35635851]
[1739310748835,0.663,637.9,637.27,0.31383871]
[1739310750736,0.663,637.9,637.27,1.67019722]
[1739310752738,0.663,637.9,637.29,1.35635851]
[1739310752938,0.663,637.9,637.3,0.31382394]
[1739310761643,0.886,638.39,637.3,0.31382394]
[1739310762245,2.9178851,639.83,637.3,0.31382394]
[1739310762441,0.31264166,639.71,637.3,0.31382394]
[1739310762642,1.6277195,639.7,637.3,0.31382394]
[1739310762840,0.31270521,639.58,637.3,0.31382394]
[1739310763044,1.34021403,639.57,637.3,0.31382394]
[1739310763241,0.31271988,639.55,637.3,0.31382394]
[1739310763443,1.34021403,639.54,637.3,0.31382394]
[1739310763647,1.34021403,639.53,637.3,0.31382394]
[1739310763846,1.65294858,639.52,637.3,0.31382394]
[1739310764048,0.31274433,639.5,637.3,0.31382394]
[1739310764250,1.34021403,639.49,637.3,0.31382394]
[1739310764448,0.312759,639.47,637.3,0.31382394]
[1739310764647,1.34021403,639.46,637.3,0.31382394]
[1739310764947,0.31277367,639.44,637.3,0.31382394]
[1739310765243,1.33979643,639.43,637.3,0.31382394]
[1739310765449,0.31278835,639.41,637.3,0.31382394]
[1739310765746,1.33979643,639.4,637.3,0.31382394]
[1739310765948,0.31280302,639.38,637.3,0.31382394]
[1739310766248,1.33979643,639.37,637.3,0.31382394]
[1739310766441,0.3128177,639.35,637.3,0.31382394]
[1739310766748,1.33979643,639.34,637.3,0.31382394]
[1739310767047,0.31283238,639.32,637.3,0.31382394]
[1739310767246,1.33979643,639.31,637.3,0.31382394]
[1739310767447,0.31284706,639.29,637.3,0.31382394]
[1739310767649,1.33979643,639.28,637.3,0.31382394]
[1739310767849,0.31286174,639.26,637.3,0.31382394]
[1739310768050,1.33979643,639.25,637.3,0.31382394]
[1739310768350,1.65266796,639.24,637.3,0.31382394]
[1739310768549,1.33979643,639.23,637.3,0.31382394]
[1739310768751,1.33979643,639.22,637.3,0.31382394]
[1739310768946,1.33979643,639.21,637.3,0.31382394]
[1739310769251,1.65268754,639.2,637.3,0.31382394]
[1739310769446,1.168,639.58,637.3,0.31382394]
[1739310769447,1.65269243,639.19,637.3,0.31382394]
[1739310769646,1.33979643,639.18,637.3,0.31382394]
[1739310769848,1.65195701,639.17,637.3,0.31382394]
[1739310770048,1.65196191,639.16,637.3,0.31382394]
[1739310770245,0.31292048,639.14,637.3,0.31382394]
[1739310770447,1.33905122,639.13,637.3,0.31382394]
[1739310770751,0.31293517,639.11,637.3,0.31382394]
[1739310771051,1.33905122,639.1,637.3,0.31382394]
[1739310771252,1.65199618,639.09,637.3,0.31382394]
[1739310771448,1.65199339,639.08,637.3,0.31382394]
[1739310771649,1.65199829,639.07,637.3,0.31382394]
[1739310771846,1.65200318,639.06,637.3,0.31382394]
[1739310772152,1.65200808,639.05,637.3,0.31382394]
[1739310772352,1.65201298,639.04,637.3,0.31382394]
[1739310772546,1.65201788,639.03,637.3,0.31382394]
[1739310772754,1.65202277,639.02,637.3,0.31382394]
[1739310773051,1.33904353,639.01,637.3,0.31382394]
[1739310773251,1.33904353,639.0,637.3,0.31382394]
[1739310773445,1.33904353,638.99,637.3,0.31382394]
[1739310773649,1.33904353,638.98,637.3,0.31382394]
[1739310773946,1.33904353,638.97,637.3,0.31382394]
[1739310774151,0.31297924,639.02,637.3,0.31382394]
[1739310774152,1.33904353,638.96,637.3,0.31382394]
[1739310774452,1.33904353,638.95,637.3,0.31382394]
[1739310774752,1.33904353,638.94,637.3,0.31382394]
[1739310774948,1.33904353,638.93,637.3,0.31382394]
[1739310775150,1.33904353,638.92,637.3,0.31382394]
[1739310775350,1.33904353,638.91,637.3,0.31382394]
[1739310775548,1.33893506,638.9,637.3,0.31382394]
[1739310775751,1.33893506,638.89,637.3,0.31382394]
[1739310775952,1.33893506,638.88,637.3,0.31382394]
[1739310776152,1.33893506,638.87,637.3,0.31382394]
[1739310776353,1.33893506,638.86,637.3,0.31382394]
[1739310776654,1.33893506,638.85,637.3,0.31382394]
[1739310776850,1.33893506,638.84,637.3,0.31382394]
[1739310777047,1.33893506,638.83,637.3,0.31382394]
[1739310777248,1.33893506,638.82,637.3,0.31382394]
[1739310777453,1.33893506,638.81,637.3,0.31382394]
[1739310777652,1.33893506,638.8,637.3,0.31382394]
[1739310777851,1.33893506,638.79,637.3,0.31382394]
[1739310778056,1.33901844,638.78,637.3,0.31382394]
[1739310778356,1.33901844,638.77,637.3,0.31382394]
[1739310778552,1.33901844,638.76,637.3,0.31382394]
[1739310778752,1.33901844,638.75,637.3,0.31382394]
[1739310778953,1.65213488,638.74,637.3,0.31382394]
[1739310779149,1.65213979,638.73,637.3,0.31382394]
[1739310779352,1.65214469,638.72,637.3,0.31382394]
[1739310779554,1.65214959,638.71,637.3,0.31382394]
[1739310779854,1.65260466,638.7,637.3,0.31382394]
[1739310780050,1.33946861,638.69,637.3,0.31382394]
[1739310780255,1.33946861,638.68,637.3,0.31382394]
[1739310780454,1.33946861,638.67,637.3,0.31382394]
[1739310780654,1.33946861,638.66,637.3,0.31382394]
[1739310780852,1.33946861,638.65,637.3,0.31382394]
[1739310781056,2.00246861,638.64,637.3,0.31382394]
[1739310781251,1.33944635,638.63,637.3,0.31382394]
[1739310781452,1.33944635,638.62,637.3,0.31382394]
[1739310781653,1.33944635,638.61,637.3,0.31382394]
[1739310781853,1.33944635,638.6,637.3,0.31382394]
[1739310782149,1.33944635,638.59,637.3,0.31382394]
[1739310782353,1.33944635,638.58,637.3,0.31382394]
[1739310782550,1.33944635,638.57,637.3,0.31382394]
[1739310782756,1.33944635,638.56,637.3,0.31382394]
[1739310782957,1.33944635,638.55,637.3,0.31382394]
[1739310783153,1.33944635,638.54,637.3,0.31382394]
[1739310783353,1.33944635,638.53,637.3,0.31382394]
[1739310783556,1.33944635,638.52,637.3,0.31382394]
[1739310783757,1.33944635,638.51,637.3,0.31382394]
[1739310783953,1.33944635,638.5,637.3,0.31382394]
[1739310784262,1.33944635,638.49,637.3,0.31382394]
[1739310784459,1.33944635,638.48,637.3,0.31382394]